bitfinex-derivatives/quotes_ETHF0:USTF0_20250904
["timestamp","ask_amount","ask_price","bid_price","bid_amount"]
[1756992380992,2.9,4399.7,4399.6,4.0613]
[1756992382784,2.9,4399.7,4399.6,4.6828]
[1756992382995,2.0679,4399.7,4399.6,4.6828]
[1756992383597,2.0679,4399.7,4399.6,4.90541252]
[1756992385192,1.9896,4400.0,4399.6,8.90541252]
[1756992385398,1.9896,4400.0,4399.9,5.63966529]
[1756992385600,1.9896,4400.0,4399.9,5.87166529]
[1756992385993,3.2209,4400.0,4399.9,5.87166529]
[1756992386700,3.7043,4400.0,4399.9,5.87166529]
[1756992388003,3.2209,4400.0,4399.9,5.87166529]
[1756992388202,1.2313,4400.0,4399.9,5.87166529]
[1756992388703,1.7147,4400.0,4399.9,5.87166529]
[1756992390000,2.5513,4400.0,4399.9,5.25126529]
[1756992390301,3.3834,4400.0,4399.9,5.48326529]
[1756992390704,1.7147,4400.0,4399.9,5.87166529]
[1756992391002,2.5513,4400.0,4399.9,5.48326529]
[1756992391901,3.3834,4400.0,4399.9,5.48326529]
[1756992392105,2.1521,4400.0,4399.6,3.43041252]
[1756992392401,1.6687,4399.8,4399.7,0.8535]
[1756992392600,2.9,4399.8,4399.7,0.8535]
[1756992393005,2.9,4399.8,4399.7,1.475]
[1756992395602,2.9,4399.8,4399.7,0.6215]
[1756992395791,2.9,4399.8,4399.7,0.8535]
[1756992395997,2.9,4399.8,4399.7,0.232]
[1756992397405,2.9,4399.8,4399.7,0.8535]
[1756992397607,2.9,4399.8,4399.7,1.475]
[1756992397913,2.9,4399.8,4399.7,0.232]
[1756992398206,2.9,4399.8,4399.7,0.8535]
[1756992398800,1.84,4399.9,4399.7,1.475]
[1756992399002,3.9079,4399.9,4399.8,1.6314]
[1756992399203,3.9079,4399.9,4399.8,1.243]
[1756992399408,4.74,4399.9,4399.8,2.37080088]
[1756992399600,4.74,4399.9,4399.8,1.74930088]
[1756992399905,2.9,4399.9,4399.8,2.37080088]
[1756992400103,1.608,4400.0,4399.8,2.75920088]
[1756992400310,1.2313,4400.9,4400.8,1.243]
[1756992400604,1.2313,4400.9,4399.9,4.45928]
[1756992400605,2.9,4400.4,4400.3,3.2078]
[1756992400793,2.9,4400.4,4400.3,0.232]
[1756992401600,2.9,4400.4,4400.3,1.0385]
[1756992401910,2.9,4400.4,4400.3,3.0727]
[1756992402911,3.2495,4401.5,4401.4,1.6232]
[1756992403108,3.2495,4401.5,4401.4,2.98300088]
[1756992405312,3.2495,4401.5,4401.4,2.17760088]
[1756992405699,3.2495,4401.5,4401.4,1.12780088]
[1756992405899,1.1757,4400.9,4400.8,33.3817913]
[1756992406107,1.1757,4400.9,4400.8,32.71780088]
[1756992407006,1.1757,4400.9,4400.8,32.48580088]
[1756992407310,1.1757,4400.9,4400.8,32.71780088]
[1756992408505,1.1757,4400.9,4400.8,33.97120088]
[1756992409811,1.8944,4401.0,4400.9,1.6232]
[1756992410115,1.8944,4401.0,4400.9,2.8766]
[1756992411911,1.6395,4401.5,4401.0,1.2534]
[1756992412211,3.2299,4401.5,4401.4,1.94560088]
[1756992412410,3.2299,4401.5,4401.4,2.17760088]
[1756992413711,3.2299,4401.5,4401.4,4.23640088]
[1756992413917,1.9517,4401.5,4401.4,4.23640088]
[1756992415520,3.2299,4401.5,4401.4,2.17760088]
[1756992415728,3.2299,4401.5,4401.4,1.35980088]
[1756992418628,3.2299,4401.5,4401.4,1.12780088]
[1756992418829,3.2299,4401.5,4401.4,1.35980088]
[1756992419335,2.7661,4400.9,4400.8,28.796]
[1756992419527,2.71820088,4400.9,4400.7,2.0237913]
[1756992419732,4.22723,4400.8,4400.2,3.2078]
[1756992419933,1.12780088,4400.6,4400.3,1.4854]
[1756992420224,1.12780088,4400.6,4400.3,0.232]
[1756992420425,1.12780088,4400.6,4400.4,1.2534]
[1756992420632,1.12780088,4400.9,4400.5,0.232]
[1756992420932,1.35504089,4400.9,4400.5,0.232]
[1756992421122,1.12780088,4400.9,4400.5,0.232]
[1756992421727,4.33560088,4400.6,4400.5,0.232]
[1756992422835,4.33560088,4400.6,4400.5,1.4854]
[1756992423230,4.33560088,4400.6,4400.5,1.9502]
[1756992424733,3.2078,4400.6,4400.5,2.768]
[1756992425040,4.9246,4400.6,4400.5,2.768]
[1756992425942,4.9246,4400.6,4400.5,3.5734]
[1756992427235,3.2078,4400.6,4400.5,3.5734]
[1756992427542,3.2078,4401.8,4401.1,1.6232]
[1756992427739,3.2078,4401.8,4401.6,1.2534]
[1756992428044,3.2078,4401.8,4401.7,3.1076]
[1756992428537,3.2078,4401.8,4401.7,4.23540088]
[1756992429733,1.12780088,4402.2,4401.7,4.23540088]
[1756992430037,3.2078,4402.3,4402.1,0.8178]
[1756992430335,5.9739,4402.3,4402.2,0.231]
[1756992430530,5.9739,4402.3,4401.8,1.12780088]
[1756992430731,2.7661,4402.0,4401.9,0.231]
[1756992432842,3.7197,4402.0,4401.9,0.231]
[1756992433043,2.8837,4401.7,4401.6,2.0894]
[1756992433438,1.2559,4401.6,4401.2,1.12780088]
[1756992433644,1.6278,4401.3,4401.2,4.03620088]
[1756992433947,2.8837,4401.3,4401.2,3.21720088]
[1756992434247,2.8837,4401.3,4401.2,0.231]
[1756992435644,2.8837,4401.3,4401.2,2.0894]
[1756992435848,2.8837,4401.3,4401.2,2.3204]
[1756992436147,1.6278,4401.3,4401.2,3.1394]
[1756992436943,2.8837,4401.3,4401.2,3.1394]
[1756992439346,0.8285,4401.6,4401.5,0.4948]
[1756992439551,3.2078,4401.8,4401.5,2.3526]
[1756992439753,1.2559,4402.0,4401.5,2.3526]
[1756992439754,4.0363,4401.6,4401.5,2.3526]
[1756992439949,4.0363,4402.1,4402.0,1.3026]
[1756992440247,4.8356,4402.1,4402.0,3.6342]
[1756992440753,4.0363,4402.1,4402.0,3.6342]
[1756992440947,3.2078,4402.1,4402.0,3.6342]
[1756992441150,4.0363,4402.1,4402.0,3.6342]
[1756992441351,4.8356,4402.1,4402.0,3.6342]
[1756992441957,4.0363,4402.1,4402.0,3.6342]
[1756992442158,3.2078,4402.1,4402.0,3.6342]
[1756992443250,4.0363,4402.6,4402.5,3.4032]
[1756992443449,4.0363,4402.6,4402.5,3.6342]
[1756992445659,4.8356,4402.6,4402.5,0.231]
[1756992446058,9.06274,4402.6,4402.5,0.231]
[1756992446358,1.6278,4401.3,4401.2,1.2816]
[1756992446662,1.6278,4401.3,4401.2,2.3204]
[1756992447357,1.6278,4401.3,4401.2,2.0894]
[1756992447660,2.4305,4401.3,4401.2,0.231]
[1756992449562,2.4305,4401.3,4401.2,1.5126]
[1756992449961,2.4305,4401.3,4401.2,1.2816]
[1756992450167,2.4305,4401.3,4401.2,1.5126]
[1756992450363,1.6278,4400.9,4400.8,2.0894]
[1756992450662,0.8027,4400.8,4400.7,31.354]
[1756992450973,0.8027,4400.8,4400.7,31.585]
[1756992451863,0.8027,4400.8,4400.7,32.8666]
[1756992452669,1.6278,4400.8,4400.7,32.8666]
[1756992453159,1.6278,4400.8,4400.7,32.6356]
[1756992453364,1.6278,4400.8,4400.7,32.8666]
[1756992454065,2.4305,4400.8,4400.7,31.585]
[1756992454464,2.4305,4400.8,4400.7,32.8666]
[1756992456663,1.6278,4400.8,4400.7,32.8666]
[1756992456868,2.8542,4400.8,4400.7,32.8666]
[1756992457273,1.2264,4400.8,4400.7,32.8666]
[1756992458173,2.0549,4400.8,4400.7,3.1394]
[1756992458876,1.2264,4400.8,4400.7,3.1394]
[1756992459872,2.0549,4400.8,4400.7,3.1394]
[1756992460287,3.2078,4401.8,4401.5,0.4948]
[1756992460578,6.0915,4401.8,4401.7,2.0894]
[1756992460876,6.0915,4401.8,4401.7,2.9084]
[1756992460877,4.0363,4401.8,4401.7,2.9084]
[1756992461476,3.2078,4401.8,4401.7,2.9084]
[1756992461676,4.0363,4401.8,4401.7,2.9084]
[1756992461871,3.2078,4401.8,4401.7,2.9084]
[1756992462881,1.1804,4401.7,4401.6,0.231]
[1756992463081,1.1804,4401.7,4401.6,0.8286]
[1756992463779,2.4267,4401.7,4401.6,0.8286]
[1756992464378,2.4267,4401.7,4400.6,2.0237913]
[1756992464379,4.025,4401.7,4400.6,2.0237913]
[1756992464581,1.5983,4401.1,4401.0,0.5298]
[1756992464776,1.2463,4401.1,4401.0,0.8286]
[1756992465879,3.9493,4401.1,4401.0,0.8286]
[1756992466683,4.7662,4401.1,4401.0,0.8286]
[1756992467379,3.9493,4401.1,4401.0,0.8286]
[1756992467780,3.9493,4401.1,4401.0,0.5976]
[1756992467979,3.9493,4401.1,4401.0,0.8286]
[1756992468987,2.0277,4401.1,4401.0,0.8286]
[1756992470278,1.3896,4401.3,4401.2,0.5976]
[1756992470486,4.2342,4401.3,4401.2,0.5976]
[1756992470786,4.2342,4401.3,4401.2,0.2988]
[1756992470989,3.3263,4401.0,4400.9,0.2988]
[1756992471181,3.3263,4401.0,4400.9,0.5298]
[1756992471484,3.3263,4401.0,4400.9,0.231]
[1756992472487,1.728,4400.5,4400.4,34.5608]
[1756992472685,1.728,4400.5,4400.4,34.7918]
[1756992473085,1.728,4400.5,4400.4,34.9785]
[1756992473289,1.728,4400.5,4400.4,37.0022913]
[1756992473585,1.728,4400.5,4400.4,36.7712913]
[1756992473785,1.728,4400.5,4400.4,34.9785]
[1756992474182,1.728,4400.5,4400.4,34.7475]
[1756992474387,1.728,4400.5,4400.4,2.0237913]
[1756992474388,3.3263,4400.5,4400.4,2.0237913]
[1756992474681,3.3263,4400.5,4400.4,0.231]
[1756992474885,3.3263,4400.5,4399.9,31.352]
[1756992474886,0.4817,4400.0,4399.9,31.352]
[1756992475081,1.728,4400.0,4399.9,31.583]
[1756992475289,2.8446,4399.3,4399.2,2.0237913]
[1756992475476,2.8446,4399.3,4399.2,0.231]
[1756992476391,2.8446,4399.3,4399.2,0.45840493]
[1756992476783,1.2463,4399.3,4399.2,0.8286]
[1756992477093,2.8446,4399.3,4399.2,0.231]
[1756992477889,2.8446,4399.3,4398.8,5.2315913]
[1756992478093,2.5094,4399.0,4398.9,0.8286]
[1756992479593,0.4817,4399.5,4398.9,0.8286]
[1756992479791,0.4817,4399.5,4399.4,0.5976]
[1756992479997,1.2631,4399.5,4399.4,0.8286]
[1756992480192,1.2536,4399.6,4399.4,1.0153]
[1756992480398,0.4817,4400.5,4399.6,0.0927]
[1756992480691,0.4817,4401.0,4400.4,8.11206916]
[1756992480888,2.08,4401.0,4400.9,0.1484]
[1756992481088,2.08,4401.0,4400.9,0.3794]
[1756992481697,2.08,4401.0,4400.9,0.231]
[1756992481886,0.4817,4400.5,4400.4,3.3562]
[1756992482084,2.08,4400.5,4400.4,3.7356]
[1756992482290,2.08,4400.5,4400.4,3.5046]
[1756992482493,3.3263,4400.5,4400.4,0.5278]
[1756992483091,1.728,4400.5,4400.4,0.5278]
[1756992483288,1.2463,4400.8,4400.5,0.0927]
[1756992483491,1.2463,4400.8,4400.7,0.3895]
[1756992483696,2.6992,4400.9,4400.7,0.5278]
[1756992483891,2.6992,4400.9,4400.8,0.3895]
[1756992484096,3.9455,4400.9,4400.8,0.5278]
[1756992484399,1.2463,4400.9,4400.8,0.6205]
[1756992484598,2.2809,4401.0,4400.8,0.5278]
[1756992484898,1.7992,4401.0,4400.9,0.3895]
[1756992485099,3.0455,4401.0,4400.9,0.3895]
[1756992485691,3.0455,4401.0,4400.9,0.2968]
[1756992485897,4.3086,4401.0,4400.9,0.2968]
[1756992487102,2.5094,4401.0,4400.9,0.2968]
[1756992488395,3.3263,4401.0,4400.9,0.3794]
[1756992488598,1.2463,4400.8,4400.6,2.0237913]
[1756992488903,3.3263,4400.5,4400.4,2.0237913]
[1756992489199,3.3263,4400.5,4400.4,0.3794]
[1756992489802,3.3263,4400.5,4400.4,0.231]
[1756992489803,4.0351,4400.5,4400.4,0.231]
[1756992490097,2.4368,4400.5,4400.4,0.231]
[1756992490298,1.2463,4400.4,4399.6,4.87901685]
[1756992490499,2.8446,4399.7,4399.4,2.0237913]
[1756992490800,3.3263,4399.5,4399.4,0.2968]
[1756992491000,1.728,4399.5,4399.4,0.2968]
[1756992491202,1.728,4399.5,4399.4,0.5278]
[1756992491401,2.5094,4399.5,4399.4,0.5278]
[1756992491704,3.3263,4399.5,4399.4,2.02672794]
[1756992491999,3.3263,4399.5,4399.4,0.231]
[1756992492193,2.08,4399.5,4399.1,31.355]
[1756992492396,2.08,4399.5,4399.2,0.231]
[1756992492596,2.08,4399.5,4399.1,31.355]
[1756992492796,1.1616,4399.4,4399.2,0.231]
[1756992493003,2.7003,4399.3,4399.2,0.231]
[1756992494299,1.9298,4399.3,4399.2,1.8318]
[1756992495103,1.1616,4399.3,4399.2,2.3791]
[1756992495299,1.1616,4399.3,4399.2,1.8318]
[1756992495500,2.7003,4399.3,4399.2,0.8036]
[1756992495701,2.7003,4399.3,4399.2,0.231]
[1756992496702,2.7003,4399.3,4399.2,1.0346]
[1756992497206,2.7003,4399.3,4399.2,1.8318]
[1756992497406,2.7003,4399.3,4399.2,1.0346]
[1756992497701,2.7003,4399.3,4399.1,31.355]
[1756992497907,1.1616,4399.2,4399.1,31.355]
[1756992498095,1.1616,4399.2,4399.1,31.586]
[1756992499004,2.3472,4399.2,4399.1,31.586]
[1756992501709,2.3472,4399.2,4399.1,31.355]
[1756992501908,1.1616,4399.2,4399.1,31.586]
[1756992502404,1.1616,4399.2,4399.1,32.1314]
[1756992502599,1.6433,4399.5,4399.4,2.1462]
[1756992502804,1.6433,4399.5,4399.4,2.3772]
[1756992503403,3.182,4399.5,4399.4,0.8036]
[1756992503608,3.182,4399.5,4399.4,0.231]
[1756992504108,3.182,4399.5,4399.4,1.0346]
[1756992504301,3.182,4399.5,4399.4,0.231]
[1756992504505,3.182,4399.5,4399.4,1.0346]
[1756992505607,3.182,4399.5,4399.4,0.231]
[1756992505808,3.182,4399.5,4399.4,1.0346]
[1756992506010,3.182,4399.5,4399.4,1.8318]
[1756992506402,1.1616,4399.5,4399.4,1.8318]
[1756992506608,4.5479,4400.0,4399.9,1.6008]
[1756992506908,4.5479,4400.0,4399.4,0.8036]
[1756992506909,2.0367,4399.5,4399.4,0.8036]
[1756992507107,2.0367,4399.5,4399.4,1.0346]
[1756992507310,3.1983,4399.5,4399.4,2.83032794]
[1756992507504,3.1983,4399.5,4399.4,2.25772794]
[1756992507698,1.1616,4399.4,4399.3,2.02672794]
[1756992508010,0.498,4399.5,4399.2,2.02672794]
[1756992508011,2.7003,4399.3,4399.2,2.02672794]
[1756992508211,1.1616,4399.2,4399.1,31.355]
[1756992508403,1.1616,4399.2,4399.1,31.586]
[1756992510407,1.1616,4399.2,4399.1,31.355]
[1756992510810,1.8432,4399.2,4399.1,31.586]
[1756992514506,1.8432,4399.2,4399.1,31.355]
[1756992514705,1.8432,4399.2,4399.1,31.586]
[1756992519616,1.8432,4399.2,4399.1,32.1314]
[1756992519914,0.6816,4399.2,4399.1,32.1314]
[1756992520216,0.6816,4399.2,4399.1,34.15812794]
[1756992520414,0.6816,4399.2,4399.1,32.1314]
[1756992521116,1.8432,4399.2,4399.1,31.586]
[1756992521509,0.6816,4399.2,4399.1,32.1314]
[1756992522621,0.1741,4399.2,4399.1,39.34815634]
[1756992522916,0.8856,4399.6,4399.1,38.80275634]
[1756992523127,0.8856,4399.6,4399.5,2.03454622]
[1756992523420,0.8856,4399.6,4399.5,0.231]
[1756992523619,0.8856,4399.6,4399.5,3.08622555]
[1756992524014,0.8856,4399.6,4399.5,2.85522555]
[1756992524221,0.8856,4399.6,4399.5,3.08622555]
[1756992524417,0.8856,4399.6,4399.5,0.231]
[1756992524616,2.023,4399.6,4399.5,0.231]
[1756992525220,2.023,4399.6,4399.4,2.85522555]
[1756992525221,2.4297,4399.5,4399.4,2.85522555]
[1756992525525,2.4297,4399.5,4399.4,3.08622555]
[1756992525822,1.6048,4399.5,4399.4,3.08622555]
[1756992526419,1.6048,4399.5,4399.4,0.231]
[1756992527120,3.2443,4399.5,4399.3,2.85522555]
[1756992527427,2.7769,4399.4,4399.3,2.85522555]
[1756992527725,2.7769,4399.4,4399.3,2.26437081]
[1756992528817,4.2489,4399.4,4399.3,2.26437081]
[1756992531725,2.7769,4399.4,4399.3,2.26437081]
[1756992531924,2.7769,4399.4,4399.3,2.03337081]
[1756992532125,2.7769,4399.4,4399.3,2.26437081]
[1756992532428,2.7769,4399.4,4399.3,0.231]
[1756992532623,2.7769,4399.4,4399.3,2.26437081]
[1756992533324,1.1374,4399.4,4399.3,2.26437081]
[1756992533522,0.8312,4399.8,4399.3,7.4388]
[1756992533722,0.8312,4399.8,4399.7,4.00963439]
[1756992533918,0.8312,4399.8,4399.7,4.24063439]
[1756992534728,1.6048,4400.0,4399.7,4.24063439]
[1756992534931,1.2923,4400.0,4399.8,2.0325628]
[1756992535119,2.4297,4400.0,4399.9,0.231]
[1756992535637,3.2443,4400.0,4399.9,2.2635628]
[1756992535835,3.2443,4400.0,4399.9,0.231]
[1756992537523,3.2443,4400.0,4399.8,2.0325628]
[1756992537724,3.2443,4400.0,4399.9,0.231]
[1756992537924,2.0931,4399.9,4399.8,2.0325628]
[1756992538124,3.2305,4399.9,4399.8,2.2635628]
[1756992538330,3.2305,4399.9,4399.8,6.27319719]
[1756992538725,4.0451,4399.9,4399.8,6.27319719]
[1756992539629,4.0451,4399.9,4399.8,2.2635628]
[1756992540331,4.0451,4399.9,4399.8,0.231]
[1756992540532,0.4674,4399.5,4399.3,7.21743439]
[1756992540827,1.6048,4399.5,4399.4,0.231]
[1756992542525,1.1374,4399.8,4399.4,4.231]
[1756992542732,1.7992,4399.9,4399.4,0.231]
[1756992542930,0.4674,4399.5,4399.4,0.231]
[1756992543124,1.1374,4399.5,4399.4,3.4388]
[1756992543324,1.1374,4399.8,4399.4,3.4388]
[1756992543733,0.4674,4399.5,4399.4,3.4388]
[1756992543928,1.6048,4399.5,4399.4,3.4388]
[1756992544136,1.6048,4399.5,4399.4,7.44843439]
[1756992544738,0.4674,4400.0,4399.4,8.41523439]
[1756992546033,2.1069,4400.0,4399.9,3.2078]
[1756992546235,2.1069,4400.0,4399.9,3.8071]
[1756992546428,2.1069,4400.0,4399.9,4.1754]
[1756992546732,3.2443,4400.0,4399.9,4.1754]
[1756992547528,1.6048,4400.0,4399.9,8.18503439]
[1756992548232,1.6048,4400.0,4399.9,8.41523439]
[1756992549426,1.6048,4400.0,4399.9,8.18503439]
[1756992549623,2.4297,4400.0,4399.9,8.18503439]
[1756992550539,3.2443,4400.0,4399.9,8.18503439]
[1756992551432,3.2443,4400.0,4399.9,5.30300733]
[1756992551636,1.6048,4400.0,4399.9,5.53320733]
[1756992552838,1.6048,4400.0,4399.9,5.30300733]
[1756992553436,1.2051,4400.4,4399.9,6.43061466]
[1756992553738,1.13604089,4401.0,4400.5,0.2344]
[1756992553940,0.4674,4401.5,4400.9,5.60990733]
[1756992554138,2.0907,4401.5,4401.4,0.4855]
[1756992554338,2.0907,4401.5,4401.4,1.84410733]
[1756992555336,2.0907,4401.5,4401.4,2.51111889]
[1756992555632,2.0907,4401.5,4401.4,2.32960733]
[1756992555832,3.2958,4401.5,4401.4,2.32960733]
[1756992558337,1.6725,4401.5,4401.4,2.62640733]
[1756992559342,2.502,4401.5,4401.4,2.32960733]
[1756992560537,2.502,4401.5,4401.4,2.09860733]
[1756992560742,1.6725,4401.5,4401.4,2.62640733]
[1756992560942,2.502,4401.5,4401.4,2.32960733]
[1756992561938,3.2958,4401.5,4401.4,1.35860733]
[1756992562644,3.2958,4401.5,4401.4,2.30840733]
[1756992563440,3.2958,4401.5,4401.4,2.07740733]
[1756992563646,3.2958,4401.5,4401.4,1.60250733]
[1756992563843,3.2958,4401.5,4401.4,1.83350733]
[1756992564744,3.2958,4401.5,4401.4,2.30840733]
[1756992567445,3.2958,4401.5,4401.4,2.58504396]
[1756992568449,3.2958,4401.5,4401.4,2.11014396]
[1756992568649,3.2958,4401.5,4401.4,1.63524396]
[1756992569152,3.2958,4401.5,4401.4,1.40424396]
[1756992569449,3.2958,4401.5,4401.4,2.11014396]
[1756992570247,3.2958,4401.5,4401.0,31.359]
[1756992570248,1.2051,4401.4,4401.0,31.359]
[1756992570441,2.8284,4401.1,4401.0,31.359]
[1756992570645,2.8284,4401.1,4401.0,31.76996824]
[1756992570844,2.8284,4401.1,4401.0,31.59]
[1756992572153,2.8284,4401.1,4401.0,32.99424396]
[1756992572856,2.8284,4401.1,4401.0,32.76324396]
[1756992573151,2.8284,4401.1,4401.0,32.99424396]
[1756992573747,2.8284,4401.1,4401.0,32.76324396]
[1756992574043,2.8284,4401.1,4401.0,32.99424396]
[1756992575350,2.8284,4401.1,4401.0,32.76324396]
[1756992575552,2.8284,4401.1,4401.0,32.99424396]
[1756992578651,2.8284,4401.1,4401.0,32.76324396]
[1756992578955,2.8284,4401.1,4401.0,32.99424396]
[1756992579448,2.8284,4401.1,4401.0,32.76324396]
[1756992579648,2.8284,4401.1,4401.0,32.99424396]
[1756992580051,1.2051,4401.1,4401.0,33.29104396]
[1756992580345,1.2051,4401.1,4401.0,32.99424396]
[1756992583145,0.4674,4401.5,4401.4,0.8352]
[1756992583357,1.2252,4401.5,4401.4,2.47044396]
[1756992583559,1.9996,4401.5,4401.4,2.47044396]
[1756992583762,3.1914,4401.5,4401.4,2.47044396]
[1756992584155,1.1918,4401.5,4401.4,2.73144396]
[1756992584658,1.6371,4401.5,4401.4,2.73144396]
[1756992584852,2.3949,4401.5,4401.4,2.47044396]
[1756992585060,3.1693,4401.5,4401.4,2.47044396]
[1756992588761,3.1693,4401.5,4401.4,5.67824396]
[1756992590358,3.1693,4401.5,4401.4,5.26064396]
[1756992590754,3.1693,4401.5,4401.4,3.2078]
[1756992590966,3.1693,4401.5,4401.4,3.4388]
[1756992592264,3.1693,4401.5,4401.4,3.8564]
[1756992592461,3.1693,4401.5,4401.4,4.274]
[1756992593061,3.1693,4401.5,4401.4,3.4388]
[1756992593460,3.1693,4401.5,4401.4,3.8564]
[1756992593765,3.1693,4401.5,4401.4,3.2078]
[1756992593966,3.1693,4401.5,4401.4,3.8564]
[1756992594362,2.3949,4401.5,4401.4,4.274]
[1756992594562,1.6371,4401.5,4401.4,4.535]
[1756992595363,0.4761,4402.0,4401.4,4.535]
[1756992595576,2.0083,4402.0,4401.9,2.96804396]
[1756992595768,2.0083,4402.0,4401.9,3.19904396]
[1756992596966,2.0083,4402.0,4401.9,0.231]
[1756992597469,3.2001,4402.0,4401.9,0.8078]
[1756992597672,3.2001,4402.0,4401.9,1.0388]
[1756992598169,3.2001,4402.0,4401.9,1.7948]
[1756992598359,3.2001,4402.0,4401.9,3.19904396]
[1756992598558,3.2001,4402.0,4401.9,6.40684396]
[1756992598773,3.2001,4402.0,4401.9,7.46384396]
[1756992599170,3.2001,4402.0,4401.9,6.40684396]
[1756992599370,3.2001,4402.0,4401.9,0.231]
[1756992599765,3.2001,4402.0,4401.9,1.0388]
[1756992600269,3.2001,4402.0,4401.3,3.2078]
[1756992600270,1.1918,4401.4,4400.3,1.1109]
[1756992600570,1.5322,4400.2,4400.1,2.6747]
[1756992600772,1.5322,4400.2,4400.1,2.9057]
[1756992601067,0.7578,4401.1,4401.0,3.1193]
[1756992601271,3.2078,4401.7,4401.1,1.1109]
[1756992601464,3.2078,4401.2,4401.1,2.6747]
[1756992601662,4.74,4401.2,4401.1,2.6747]
[1756992601872,1.5322,4400.9,4400.8,32.4589]
[1756992602175,0.7578,4400.9,4400.8,32.6899]
[1756992602472,3.2078,4401.8,4401.5,0.4446]
[1756992602660,3.9656,4401.8,4401.7,4.07894396]
[1756992602864,5.4061,4401.8,4401.7,1.1109]
[1756992603058,5.4061,4401.8,4401.0,0.4446]
[1756992603059,1.5322,4401.3,4401.0,0.4446]
[1756992603257,2.1983,4400.9,4400.4,1.1109]
[1756992603470,2.1983,4400.9,4400.0,1.59505074]
[1756992603770,5.75943,4400.9,4400.0,1.5555]
[1756992604071,3.2078,4400.1,4399.5,0.4446]
[1756992604372,4.61204396,4399.6,4399.0,1.5555]
[1756992604570,3.2078,4399.1,4399.0,3.1193]
[1756992604765,3.2078,4399.1,4399.0,3.3503]
[1756992605666,3.2078,4399.1,4398.5,1.5555]
[1756992605874,3.2078,4398.6,4398.5,3.1193]
[1756992606173,3.2078,4398.6,4398.5,3.3503]
[1756992606559,3.2078,4399.1,4398.5,8.98257601]
[1756992606759,3.9656,4399.1,4399.0,3.1193]
[1756992606960,4.74,4399.1,4399.0,3.1193]
[1756992607165,5.9318,4399.1,4399.0,3.3503]
[1756992607672,1.5322,4399.1,4399.0,3.3503]
[1756992608166,0.1135,4399.3,4399.0,3.64364396]
[1756992608371,0.7578,4399.1,4399.0,2.2394]
[1756992608772,0.7578,4399.1,4399.0,3.3503]
[1756992608974,0.1135,4399.3,4399.0,3.3503]
[1756992609170,1.6457,4399.3,4399.2,1.9187]
[1756992609368,1.5322,4399.3,4399.2,2.1497]
[1756992609868,1.5322,4399.3,4399.2,1.9187]
[1756992610068,1.5322,4399.3,4397.8,3.388797]
[1756992610069,2.724,4398.1,4398.0,31.349]
[1756992610376,1.5322,4397.4,4397.3,1.9187]
[1756992610675,4.74,4398.1,4398.0,0.8078]
[1756992610867,4.74,4398.1,4398.0,2.1497]
[1756992611068,0.1136,4398.3,4398.1,1.1109]
[1756992611264,2.8376,4398.3,4398.2,0.231]
[1756992611468,2.724,4398.3,4398.2,0.231]
[1756992612166,2.724,4398.3,4398.2,2.9435]
[1756992612167,1.5322,4398.3,4398.2,2.9435]
[1756992612370,3.2078,4398.6,4398.5,0.4925]
[1756992612572,3.2078,4398.6,4398.5,1.8716]
[1756992612871,1.13,4398.6,4398.5,0.231]
[1756992613071,1.2436,4398.8,4398.5,0.231]
[1756992613274,3.2078,4398.6,4398.5,0.231]
[1756992613474,3.1498,4398.2,4398.1,1.1481]
[1756992613773,4.2798,4398.2,4398.1,0.231]
[1756992614572,3.1498,4398.2,4398.1,1.3791]
[1756992615066,3.1498,4398.2,4398.1,1.1481]
[1756992615268,4.2798,4398.2,4397.5,3.6524]
[1756992615466,1.4616,4397.5,4396.7,1.1481]
[1756992615670,1.13,4397.4,4396.8,0.232]
[1756992616574,1.13,4396.8,4395.7,1.1481]
[1756992616776,1.13,4395.9,4395.6,0.232]
[1756992617678,1.13,4395.7,4395.1,0.232]
[1756992617976,4.3378,4395.2,4395.1,0.232]
[1756992618877,4.3378,4395.2,4394.7,31.365]
[1756992618878,4.3378,4395.2,4394.6,0.232]
[1756992619072,2.1008,4395.1,4394.6,0.232]
[1756992619267,2.1008,4395.1,4393.3,31.55544004]
[1756992619268,0.2986,4394.5,4393.3,3.2078]
[1756992619474,0.2986,4394.5,4392.5,1.3801]
[1756992619475,1.13,4393.4,4392.5,1.3801]
[1756992619670,1.0821,4392.7,4391.7,1.1481]
[1756992619871,1.3807,4392.0,4391.0,0.4925]
[1756992620077,3.2078,4391.2,4391.1,1.3801]
[1756992620269,1.0821,4391.1,4390.7,1.1481]
[1756992620775,1.0821,4390.9,4389.8,0.232]
[1756992620977,1.0821,4390.2,4389.2,1.1481]
[1756992621180,1.0821,4389.6,4388.8,3.2078]
[1756992621375,1.0821,4388.9,4388.0,0.4925]
[1756992621567,1.0821,4388.9,4388.1,0.233]
[1756992621774,3.2078,4389.5,4388.5,0.4925]
[1756992621979,3.2078,4389.5,4388.6,1.3811]
[1756992622270,3.2078,4389.5,4387.9,1.1481]
[1756992622271,3.2078,4388.7,4387.9,1.1481]
[1756992622579,3.2078,4389.0,4388.6,1.1481]
[1756992622779,3.2078,4390.1,4390.0,1.6406]
[1756992622981,3.2078,4390.1,4390.0,1.8756]
[1756992623176,3.2078,4390.1,4390.0,5.8756]
[1756992623377,3.2078,4390.1,4390.0,1.6406]
[1756992623584,3.2078,4390.1,4389.9,0.236]